bitfinex/quotes_SOLUSD_20251124
["timestamp","ask_amount","ask_price","bid_price","bid_amount"]
[1763998053463,13.4812285,130.53,130.49,10.48882769]
[1763998053671,0.69,130.53,130.49,9.78882769]
[1763998053849,12.7912285,130.51,130.48,3.48]
[1763998054250,12.7912285,130.51,130.46,12.7912285]
[1763998054251,12.7912285,130.49,130.42,0.7]
[1763998054477,12.7912285,130.48,130.43,16.2712285]
[1763998054673,12.7912285,130.48,130.44,10.48882769]
[1763998054890,12.7912285,130.47,130.44,10.48882769]
[1763998055055,12.7912285,130.48,130.44,10.48882769]
[1763998055395,0.2,130.54,130.44,10.48882769]
[1763998055396,17.198864,130.54,130.48,9.78882769]
[1763998055676,12.7912285,130.51,130.48,9.78882769]
[1763998056660,12.7912285,130.5,130.48,9.78882769]
[1763998056883,12.7912285,130.51,130.48,9.78882769]
[1763998057044,12.7912285,130.51,130.48,10.48882769]
[1763998057246,12.7912285,130.52,130.48,10.48882769]
[1763998057673,16.508864,130.54,130.48,10.48882769]
[1763998057971,16.508864,130.54,130.47,16.2712285]
[1763998057972,12.7912285,130.49,130.47,3.48]
[1763998058181,12.7912285,130.48,130.45,10.48882769]
[1763998058355,0.69,130.53,130.44,10.48882769]
[1763998058552,8.16735815,130.48,130.45,0.7]
[1763998058946,8.16735815,130.47,130.45,0.7]
[1763998059172,16.308864,130.51,130.44,9.78882769]
[1763998059474,8.16735815,130.47,130.44,9.78882769]
[1763998060966,16.998864,130.53,130.44,9.78882769]
[1763998061176,8.16735815,130.48,130.44,9.78882769]
[1763998061557,8.16735815,130.47,130.44,9.78882769]
[1763998061762,8.16735815,130.47,130.43,4.18]
[1763998061960,16.308864,130.5,130.43,4.18]
[1763998061961,8.16735815,130.46,130.43,4.18]
[1763998062160,8.16735815,130.46,130.43,3.48]
[1763998062369,8.16735815,130.47,130.44,10.48882769]
[1763998062565,8.16735815,130.47,130.44,9.78882769]
[1763998063089,8.16735815,130.45,130.43,3.48]
[1763998063767,8.16735815,130.44,130.43,3.48]
[1763998064387,8.16735815,130.45,130.43,3.48]
[1763998064564,16.308864,130.49,130.43,3.48]
[1763998064770,8.16735815,130.46,130.43,3.48]
[1763998065175,8.16735815,130.47,130.44,10.48882769]
[1763998065375,8.16735815,130.48,130.44,10.48882769]
[1763998065584,8.16735815,130.49,130.45,8.86735815]
[1763998065779,8.16735815,130.49,130.45,0.7]
[1763998065984,8.16735815,130.48,130.45,0.7]
[1763998067567,8.16735815,130.47,130.44,9.78882769]
[1763998067772,8.16735815,130.46,130.43,3.48]
[1763998068170,0.71,130.49,130.43,4.15]
[1763998068369,16.308864,130.51,130.44,10.45882769]
[1763998068586,8.16735815,130.47,130.44,10.45882769]
[1763998068966,0.71,130.52,130.45,0.67]
[1763998069166,8.16735815,130.48,130.45,0.67]
[1763998069963,0.71,130.52,130.46,9.78882769]
[1763998070164,8.16735815,130.51,130.46,17.95618584]
[1763998070360,8.16735815,130.51,130.48,9.78882769]
[1763998070869,8.16735815,130.51,130.48,10.45882769]
[1763998071070,8.16735815,130.52,130.49,0.67]
[1763998071268,8.16735815,130.5,130.47,3.48]
[1763998071568,16.308864,130.53,130.48,0.67]
[1763998071771,8.16735815,130.51,130.48,0.67]
[1763998072073,0.91,130.54,130.48,0.67]
[1763998072074,8.16735815,130.52,130.49,9.78882769]
[1763998072465,8.16735815,130.52,130.49,10.45882769]
[1763998072661,8.16735815,130.51,130.47,3.48]
[1763998072988,8.16735815,130.51,130.48,10.45882769]
[1763998073159,8.16735815,130.52,130.48,18.62618584]
[1763998073360,8.16735815,130.53,130.49,0.67]
[1763998073665,8.16735815,130.52,130.49,0.67]
[1763998074192,0.2,130.54,130.49,0.67]
[1763998074411,8.16735815,130.53,130.49,0.67]
[1763998074599,8.16735815,130.52,130.48,9.78882769]
[1763998074894,0.86,130.54,130.49,0.67]
[1763998074895,0.2,130.54,130.49,0.67]
[1763998075194,0.2,130.54,130.5,8.16735815]
[1763998075493,0.2,130.54,130.51,9.78882769]
[1763998075692,8.36735815,130.54,130.51,10.45882769]
[1763998076074,8.16735815,130.52,130.49,9.78882769]
[1763998076277,0.86,130.54,130.48,0.67]
[1763998076278,8.16735815,130.51,130.48,0.67]
[1763998076475,8.16735815,130.51,130.47,13.26882769]
[1763998076680,8.16735815,130.51,130.48,0.67]
[1763998077895,8.16735815,130.49,130.45,9.78882769]
[1763998078069,8.16735815,130.49,130.46,9.78882769]
[1763998078470,8.16735815,130.48,130.45,9.78882769]
[1763998078697,8.16735815,130.49,130.45,10.45882769]
[1763998078993,8.16735815,130.48,130.45,10.45882769]
[1763998079773,8.16735815,130.5,130.46,8.83735815]
[1763998080278,8.16735815,130.5,130.47,0.67]
[1763998080476,8.16735815,130.51,130.47,0.67]
[1763998080674,0.2,130.54,130.49,8.16735815]
[1763998080890,0.2,130.54,130.51,9.78882769]
[1763998081085,0.2,130.54,130.51,17.95618584]
[1763998081287,0.2,130.54,130.52,0.67]
[1763998081594,0.2,130.54,130.53,9.78882769]
[1763998082599,0.2,130.54,130.53,10.45882769]
[1763998082777,0.2,130.54,130.53,18.62618584]
[1763998082978,0.2,130.54,130.53,10.45882769]
[1763998083386,0.2,130.54,130.53,9.78882769]
[1763998083899,0.2,130.54,130.53,10.45882769]
[1763998084218,0.2,130.54,130.53,18.62618584]
[1763998084388,8.36735815,130.57,130.53,26.28725992]
[1763998084389,0.2,130.57,130.53,26.28725992]
[1763998084705,0.2,130.57,130.56,17.95618584]
[1763998084905,0.66,130.64,130.57,9.78882769]
[1763998085089,8.16735815,130.62,130.57,18.62618584]
[1763998085495,8.16735815,130.62,130.59,9.78882769]
[1763998085805,0.2,130.65,130.61,17.95618584]
[1763998085995,8.36735815,130.65,130.61,17.95618584]
[1763998086196,0.2,130.65,130.63,17.95618584]
[1763998086496,0.2,130.65,130.64,17.95618584]
[1763998086703,0.2,130.68,130.67,9.78882769]
[1763998087280,0.2,130.68,130.67,18.62618584]
[1763998087599,0.2,130.71,130.67,18.62618584]
[1763998087907,0.2,130.71,130.68,8.83735815]
[1763998088097,0.2,130.71,130.7,9.78882769]
[1763998088408,0.2,130.71,130.7,17.95618584]
[1763998088714,0.2,130.72,130.7,17.95618584]
[1763998088715,0.2,130.72,130.7,34.93504984]
[1763998089006,0.2,130.72,130.71,13.26882769]
[1763998089202,0.2,130.72,130.71,9.78882769]
[1763998089419,9.02735815,130.72,130.7,3.48]
[1763998089617,0.2,130.72,130.7,13.26882769]
[1763998090290,8.16735815,130.71,130.7,3.48]
[1763998090489,0.2,130.72,130.7,3.48]
[1763998090951,0.2,130.72,130.71,18.62618584]
[1763998091941,0.2,130.72,130.71,10.45882769]
[1763998092242,0.2,130.72,130.71,18.62618584]
[1763998093445,0.2,130.72,130.71,34.93504984]
[1763998093740,0.2,130.72,130.71,42.5855739]
[1763998094302,0.2,130.72,130.71,34.93504984]
[1763998095246,0.2,130.72,130.71,42.5855739]
[1763998095443,0.2,130.72,130.71,50.75293205]
[1763998095906,8.82735815,130.83,130.75,9.78882769]
[1763998096105,8.16735815,130.81,130.77,9.78882769]
[1763998096327,8.16735815,130.81,130.77,17.95618584]
[1763998096539,8.82735815,130.81,130.77,9.78882769]
[1763998096903,8.82735815,130.8,130.77,9.78882769]
[1763998097143,8.82735815,130.79,130.77,3.48]
[1763998097341,16.308864,130.82,130.77,3.48]
[1763998097342,16.308864,130.84,130.77,3.48]
[1763998097544,8.16735815,130.82,130.79,9.78882769]
[1763998098035,8.82735815,130.82,130.79,9.78882769]
[1763998098462,0.66,130.81,130.78,9.78882769]
[1763998098665,8.82735815,130.81,130.78,9.78882769]
[1763998099124,0.66,130.81,130.78,9.78882769]
[1763998099320,8.82735815,130.81,130.78,9.78882769]
[1763998099868,8.16735815,130.85,130.81,9.78882769]
[1763998100064,8.16735815,130.84,130.81,13.26882769]
[1763998100926,16.968864,130.85,130.81,13.26882769]
[1763998101134,8.16735815,130.84,130.81,13.26882769]
[1763998101430,8.82735815,130.85,130.81,13.26882769]
[1763998101646,8.16735815,130.84,130.81,13.26882769]
[1763998102027,16.968864,130.85,130.81,13.26882769]
[1763998102028,8.82735815,130.85,130.81,13.26882769]
[1763998102223,8.82735815,130.85,130.81,21.43618584]
[1763998102420,16.308864,130.9,130.84,8.16735815]
[1763998102664,3.48,130.93,130.85,13.24882769]
[1763998102665,8.16735815,130.88,130.85,13.24882769]
[1763998103026,8.83735815,130.88,130.85,13.24882769]
[1763998103256,8.16735815,130.87,130.85,13.24882769]
[1763998103435,8.83735815,130.88,130.85,13.24882769]
[1763998103958,0.67,130.87,130.85,13.24882769]
[1763998104163,8.83735815,130.87,130.85,13.24882769]
[1763998104327,8.16735815,130.86,130.8,25.13622215]
[1763998104527,8.16735815,130.85,130.81,13.24882769]
[1763998104750,8.83735815,130.86,130.83,9.78882769]
[1763998105330,8.16735815,130.87,130.84,9.78882769]
[1763998105663,8.16735815,130.86,130.84,13.24882769]
[1763998105887,8.16735815,130.85,130.81,9.78882769]
[1763998106191,24.47622215,130.85,130.82,0.66]
[1763998106483,24.47622215,130.85,130.81,10.44882769]
[1763998106673,8.16735815,130.84,130.81,10.44882769]
[1763998107866,8.16735815,130.84,130.81,9.78882769]
[1763998108973,8.16735815,130.9,130.83,17.95618584]
[1763998109137,8.16735815,130.9,130.86,9.78882769]
[1763998109343,8.16735815,130.9,130.86,17.95618584]
[1763998109576,8.16735815,130.9,130.87,4.12]
[1763998109739,8.16735815,130.91,130.88,9.78882769]
[1763998110172,0.67,130.91,130.88,9.78882769]
[1763998110366,8.83735815,130.91,130.88,9.78882769]
[1763998110569,8.16735815,130.9,130.88,9.78882769]
[1763998110880,8.16735815,130.9,130.87,3.46]
[1763998110881,8.16735815,130.89,130.87,3.46]
[1763998111043,8.16735815,130.88,130.87,3.46]
[1763998111364,0.67,130.9,130.87,3.46]
[1763998111580,8.16735815,130.88,130.87,3.46]
[1763998111942,8.83735815,130.88,130.84,3.46]
[1763998112142,8.16735815,130.87,130.84,3.46]
[1763998112445,8.83735815,130.88,130.84,4.12]
[1763998112673,8.16735815,130.89,130.85,10.44882769]
[1763998113167,8.16735815,130.88,130.85,10.44882769]
[1763998113765,8.16735815,130.89,130.85,10.44882769]
[1763998114464,8.16735815,130.87,130.85,3.46]
[1763998114662,8.16735815,130.86,130.85,3.46]
[1763998115178,8.83735815,130.86,130.82,13.24882769]
[1763998115361,8.16735815,130.86,130.82,13.90882769]
[1763998115553,8.83735815,130.86,130.82,13.90882769]
[1763998115776,8.16735815,130.86,130.82,13.90882769]
[1763998115965,8.16735815,130.87,130.83,8.82735815]
[1763998116165,8.16735815,130.88,130.83,8.82735815]
[1763998116374,8.83735815,130.88,130.83,8.16735815]
[1763998116657,8.83735815,130.88,130.85,9.78882769]
[1763998116860,8.16735815,130.86,130.85,9.78882769]
[1763998117062,8.16735815,130.86,130.83,9.78882769]
[1763998117279,8.16735815,130.86,130.83,10.44882769]
[1763998118072,8.16735815,130.87,130.83,10.44882769]
[1763998118476,8.83735815,130.87,130.83,10.44882769]
[1763998118679,8.83735815,130.87,130.82,11.62735815]
[1763998118680,8.16735815,130.86,130.84,3.46]
[1763998118909,8.16735815,130.86,130.83,4.12]
[1763998119110,8.16735815,130.9,130.84,9.78882769]
[1763998119271,8.16735815,130.9,130.85,8.82735815]
[1763998119471,8.16735815,130.9,130.86,13.24882769]
[1763998119772,8.83735815,130.9,130.86,13.24882769]
[1763998119978,8.16735815,130.9,130.86,13.90882769]
[1763998120179,8.16735815,130.91,130.88,9.78882769]
[1763998120484,3.46,130.93,130.88,9.78882769]
[1763998120485,8.16735815,130.92,130.88,9.78882769]
[1763998120675,8.16735815,130.92,130.84,7.64289866]
[1763998120676,12.71058458,130.93,130.9,9.78882769]
[1763998120889,12.71058458,130.92,130.9,9.78882769]
[1763998121478,12.71058458,130.91,130.89,3.46]
[1763998121878,0.67,130.91,130.87,9.78882769]
[1763998122079,13.38058458,130.9,130.87,9.78882769]
[1763998122297,12.71058458,130.9,130.87,9.78882769]
[1763998122504,12.71058458,130.89,130.87,9.78882769]
[1763998122687,12.71058458,130.9,130.87,9.78882769]
[1763998123518,13.38058458,130.89,130.86,3.46]
[1763998123720,12.71058458,130.87,130.81,0.66]
[1763998123874,0.67,130.88,130.82,13.24882769]
[1763998124076,12.71058458,130.86,130.82,13.24882769]
[1763998124272,12.71058458,130.87,130.82,26.61941227]
[1763998124528,16.308864,130.89,130.83,13.37058458]
[1763998124692,12.71058458,130.88,130.85,9.78882769]
[1763998124899,12.71058458,130.89,130.85,13.24882769]
[1763998125096,13.38058458,130.89,130.85,13.90882769]
[1763998125397,12.71058458,130.88,130.85,13.24882769]
[1763998125596,12.71058458,130.88,130.85,13.90882769]
[1763998125801,16.308864,130.92,130.87,9.78882769]
[1763998125984,12.71058458,130.9,130.87,9.78882769]
[1763998126185,12.71058458,130.91,130.87,9.78882769]
[1763998126389,13.38058458,130.91,130.88,9.78882769]
[1763998126588,12.71058458,130.91,130.88,9.78882769]
[1763998126790,12.71058458,130.91,130.88,10.44882769]
[1763998126988,0.87,130.95,130.9,9.78882769]
[1763998127294,0.87,130.95,130.86,16.308864]
[1763998127295,12.71058458,130.91,130.86,29.66944858]
[1763998127478,12.71058458,130.89,130.87,13.24882769]
[1763998127977,12.71058458,130.91,130.88,0.65]
[1763998128174,12.71058458,130.93,130.89,9.78882769]
[1763998128389,13.39058458,130.94,130.9,3.46]
[1763998128819,0.68,130.94,130.9,3.46]
[1763998129003,12.71058458,130.93,130.9,3.46]
[1763998129202,12.71058458,130.91,130.85,16.958864]
[1763998129524,12.71058458,130.9,130.86,13.24882769]
[1763998129813,16.308864,130.92,130.86,13.24882769]
[1763998129986,12.71058458,130.9,130.86,13.24882769]
[1763998130186,0.68,130.91,130.86,13.24882769]
[1763998130407,12.71058458,130.89,130.86,13.24882769]
[1763998130606,12.71058458,130.89,130.86,13.89882769]
[1763998130915,12.71058458,130.9,130.86,13.89882769]
[1763998131107,12.71058458,130.89,130.86,13.89882769]
[1763998133010,12.71058458,130.9,130.86,13.89882769]
[1763998133521,13.38058458,130.9,130.86,13.89882769]
[1763998133821,12.71058458,130.9,130.86,13.91882769]
[1763998134320,12.71058458,130.88,130.86,13.24882769]
[1763998134621,12.71058458,130.9,130.86,13.91882769]
[1763998134830,29.01944858,130.91,130.86,25.95941227]
[1763998135122,29.01944858,130.91,130.86,26.62941227]
[1763998135297,12.71058458,130.9,130.86,13.91882769]
[1763998136306,13.38058458,130.89,130.86,13.24882769]
[1763998136827,12.71058458,130.88,130.86,13.24882769]
[1763998137210,16.308864,130.92,130.88,9.78882769]
[1763998137415,29.01944858,130.92,130.89,3.46]
[1763998137605,29.68944858,130.92,130.9,9.78882769]
[1763998138419,13.38058458,130.92,130.9,9.78882769]
[1763998138627,12.71058458,130.92,130.9,9.78882769]
[1763998138826,12.71058458,130.93,130.9,9.78882769]
[1763998139195,13.38058458,130.93,130.9,9.78882769]
[1763998139694,12.71058458,130.92,130.9,9.78882769]
[1763998139917,13.38058458,130.93,130.9,9.78882769]
[1763998140307,12.71058458,130.92,130.9,9.78882769]
[1763998140721,13.38058458,130.93,130.9,9.78882769]
[1763998140902,0.2,130.95,130.92,9.78882769]
[1763998141102,0.2,130.95,130.94,22.49941227]
[1763998141412,0.2,131.03,130.98,26.09769169]
[1763998141611,0.2,131.03,130.98,42.26827627]
[1763998141925,13.58058458,130.99,130.92,0.67]
[1763998142132,12.71058458,130.98,130.93,25.95941227]
[1763998142327,12.71058458,130.97,130.93,13.24882769]
[1763998142536,12.71058458,130.97,130.93,13.91882769]
[1763998142857,0.2,130.99,130.93,13.24882769]
[1763998142858,13.38058458,130.96,130.93,13.24882769]
[1763998142999,12.71058458,130.95,130.94,13.24882769]
[1763998143350,12.71058458,130.95,130.81,51.99999999]
[1763998143351,13.38058458,130.95,130.81,51.99999999]
[1763998143628,16.308864,130.91,130.83,12.71058458]
[1763998143846,12.71058458,130.87,130.82,16.84058458]
[1763998144002,16.308864,130.91,130.82,3.46]
[1763998144003,12.71058458,130.85,130.82,3.46]
[1763998144333,12.71058458,130.85,130.73,50.0]
[1763998144334,12.71058458,130.83,130.76,13.38058458]
[1763998144511,16.308864,130.8,130.72,0.67]
[1763998144833,16.308864,130.8,130.74,3.46]
[1763998145014,12.71058458,130.78,130.75,9.78882769]
[1763998145210,0.67,130.8,130.74,16.17058458]
[1763998145424,0.67,130.82,130.76,12.71058458]
[1763998145625,0.67,130.82,130.75,0.67]
[1763998145626,12.71058458,130.81,130.77,3.46]
[1763998145819,0.67,130.82,130.79,9.78882769]
[1763998145820,12.71058458,130.82,130.79,9.78882769]
[1763998146004,12.71058458,130.82,130.78,10.45882769]
[1763998146204,29.01944858,130.83,130.78,23.16941227]
[1763998146511,12.71058458,130.82,130.78,10.45882769]
[1763998146920,29.68944858,130.83,130.78,10.45882769]
[1763998147116,16.978864,130.86,130.79,0.67]
[1763998147338,0.67,130.86,130.8,25.95941227]
[1763998147635,12.71058458,130.83,130.8,13.24882769]
[1763998148039,12.71058458,130.85,130.8,25.95941227]
[1763998148332,12.71058458,130.85,130.82,9.78882769]
[1763998148528,1.99999999,130.91,130.82,9.78882769]
[1763998148529,0.67,130.87,130.82,22.49941227]
[1763998148844,12.71058458,130.87,130.84,9.78882769]
[1763998149938,13.38058458,130.87,130.84,9.78882769]
[1763998150139,13.38058458,130.89,130.86,9.78882769]
[1763998150340,12.71058458,130.9,130.86,13.24882769]
[1763998150553,12.71058458,130.91,130.86,13.24882769]
[1763998150761,12.71058458,130.88,130.82,3.46]
[1763998150942,12.71058458,130.87,130.83,9.78882769]
[1763998151128,0.67,130.88,130.83,9.78882769]
[1763998151329,12.71058458,130.86,130.83,9.78882769]
[1763998152146,12.71058458,130.87,130.83,10.45882769]
[1763998152343,0.67,130.87,130.83,9.78882769]
[1763998152526,29.01944858,130.87,130.83,9.78882769]
[1763998152852,16.308864,130.87,130.83,23.16941227]
[1763998153015,13.38058458,130.89,130.84,0.67]
[1763998153349,12.71058458,130.88,130.84,0.67]
[1763998153546,12.71058458,130.88,130.83,22.49941227]
[1763998153547,12.71058458,130.87,130.83,9.78882769]
[1763998153717,0.67,130.88,130.84,13.38058458]
[1763998154918,12.71058458,130.88,130.84,0.67]
[1763998155132,16.308864,130.89,130.84,0.67]
[1763998155329,29.01944858,130.89,130.84,13.38058458]
[1763998155534,29.68944858,130.89,130.84,13.38058458]
[1763998156040,29.01944858,130.89,130.86,9.78882769]
[1763998156228,29.72944858,130.89,130.86,9.78882769]
[1763998156416,29.01944858,130.89,130.86,10.46882769]
[1763998156618,29.01944858,130.89,130.86,9.78882769]
[1763998156819,0.71,130.91,130.86,9.78882769]
[1763998157048,12.71058458,130.9,130.86,9.78882769]
[1763998157432,12.71058458,130.89,130.86,9.78882769]
[1763998157629,13.42058458,130.9,130.86,9.78882769]
[1763998158444,12.71058458,130.88,130.86,9.78882769]
[1763998158623,12.71058458,130.87,130.82,13.24882769]
[1763998158823,12.71058458,130.86,130.82,13.24882769]
[1763998159351,12.71058458,130.86,130.82,13.92882769]
[1763998159529,12.71058458,130.87,130.82,13.92882769]
[1763998159731,0.71,130.9,130.83,13.39058458]
[1763998159934,12.71058458,130.89,130.83,13.39058458]
[1763998160131,12.71058458,130.89,130.85,9.78882769]
[1763998160441,12.71058458,130.89,130.84,12.71058458]
[1763998160442,0.71,130.89,130.84,10.46882769]
[1763998160641,12.71058458,130.88,130.85,0.68]
[1763998161254,13.42058458,130.88,130.83,9.78882769]
[1763998161550,13.42058458,130.88,130.83,10.46882769]
[1763998161750,13.42058458,130.88,130.84,0.68]
[1763998161948,0.71,130.9,130.86,9.78882769]
[1763998162126,13.42058458,130.92,130.86,22.49941227]
[1763998162328,12.71058458,130.91,130.86,23.17941227]
[1763998162636,12.71058458,130.9,130.86,9.78882769]
[1763998162844,13.37058458,130.9,130.86,9.78882769]
[1763998163154,13.37058458,130.89,130.86,9.78882769]
[1763998164035,12.71058458,130.9,130.86,10.49882769]
[1763998164350,12.71058458,130.89,130.86,10.49882769]
[1763998164946,12.71058458,130.89,130.86,9.78882769]
[1763998165760,12.71058458,130.87,130.82,0.71]
[1763998165966,12.71058458,130.85,130.83,13.24882769]
[1763998166461,12.71058458,130.84,130.83,13.24882769]
[1763998166846,16.968864,130.9,130.83,26.66941227]
[1763998167034,12.71058458,130.88,130.85,9.78882769]
[1763998167230,12.71058458,130.86,130.83,3.46]
[1763998167455,12.71058458,130.85,130.83,9.78882769]
[1763998167837,13.37058458,130.85,130.83,9.78882769]
[1763998168045,12.71058458,130.84,130.83,9.78882769]
[1763998168244,12.71058458,130.84,130.77,16.308864]
[1763998168245,29.67944858,130.84,130.77,13.42058458]
[1763998168567,29.67944858,130.84,130.74,33.55992914]
[1763998168568,12.71058458,130.83,130.78,26.66941227]
[1763998168762,29.67944858,130.84,130.79,16.88058458]
[1763998168967,29.01944858,130.84,130.8,9.78882769]
[1763998169265,12.71058458,130.83,130.8,10.49882769]
[1763998171636,12.71058458,130.84,130.82,9.78882769]
[1763998171840,0.66,130.86,130.82,9.78882769]
[1763998172056,0.66,130.86,130.82,0.71]
[1763998172243,12.71058458,130.84,130.8,10.49882769]
[1763998172552,12.71058458,130.84,130.81,0.71]
[1763998172761,12.71058458,130.84,130.82,9.78882769]
[1763998173262,12.71058458,130.84,130.8,10.49882769]
[1763998173661,12.71058458,130.84,130.82,9.78882769]
[1763998173860,12.71058458,130.83,130.8,9.78882769]
[1763998174568,12.71058458,130.83,130.8,10.49882769]
[1763998174857,16.308864,130.87,130.8,9.78882769]
[1763998175060,16.308864,130.87,130.79,16.17058458]
[1763998175061,12.71058458,130.84,130.82,9.78882769]
[1763998175265,1.99999999,130.94,130.82,13.24882769]
[1763998175432,0.66,130.9,130.84,22.49941227]
[1763998175634,12.71058458,130.89,130.84,22.49941227]
[1763998175835,13.37058458,130.9,130.86,9.78882769]
[1763998176041,12.71058458,130.88,130.86,13.24882769]
[1763998178575,12.71058458,130.89,130.86,13.24882769]
[1763998178751,12.71058458,130.9,130.87,0.71]
[1763998179076,12.71058458,130.92,130.88,9.78882769]
[1763998179240,12.71058458,130.93,130.88,9.78882769]
[1763998179583,12.71058458,130.94,130.89,26.66941227]
[1763998179947,12.71058458,130.94,130.9,0.71]
[1763998180353,12.71058458,130.93,130.9,0.71]
[1763998180551,8.11014584,130.93,130.9,0.71]
[1763998180882,8.11014584,130.93,130.88,8.11014584]
[1763998180883,8.11014584,130.91,130.88,9.78882769]
[1763998181181,8.11014584,130.91,130.88,13.24882769]
[1763998181380,8.11014584,130.91,130.88,13.95882769]
[1763998181887,8.11014584,130.93,130.89,0.71]
[1763998182046,8.11014584,130.94,130.89,8.82014584]
[1763998182241,8.11014584,130.93,130.89,0.71]
[1763998182463,8.11014584,130.92,130.88,13.24882769]
[1763998182766,8.11014584,130.92,130.89,0.71]
[1763998183659,8.11014584,130.91,130.88,13.24882769]
[1763998183966,8.11014584,130.92,130.89,0.71]
[1763998185651,8.11014584,130.93,130.89,0.71]
[1763998185948,8.11014584,130.9,130.85,3.46]
[1763998186164,8.11014584,130.88,130.85,13.24882769]
[1763998186678,8.11014584,130.88,130.85,13.95882769]
[1763998188586,8.11014584,130.86,130.85,3.46]
[1763998189051,8.11014584,130.87,130.85,3.46]
[1763998189672,8.11014584,130.87,130.85,4.12]
[1763998189873,8.11014584,130.88,130.85,4.12]
[1763998190148,16.308864,130.89,130.85,3.46]
[1763998190354,8.11014584,130.89,130.87,9.78882769]
[1763998193895,8.78014584,130.88,130.86,9.78882769]
[1763998194060,8.11014584,130.87,130.86,9.78882769]
[1763998194562,8.78014584,130.87,130.85,3.46]
[1763998194747,8.11014584,130.86,130.85,3.46]
[1763998194952,8.11014584,130.86,130.81,16.998864]
[1763998194953,8.78014584,130.86,130.82,13.24882769]
[1763998195161,8.78014584,130.86,130.82,13.93882769]
[1763998195162,8.11014584,130.86,130.82,13.93882769]
[1763998195385,8.11014584,130.86,130.84,9.78882769]
[1763998196581,8.11014584,130.86,130.82,13.93882769]
[1763998196890,8.11014584,130.85,130.82,3.46]
[1763998197081,8.11014584,130.83,130.82,3.46]
[1763998197448,8.11014584,130.84,130.82,13.24882769]
[1763998197658,8.11014584,130.83,130.82,3.46]
[1763998197864,8.78014584,130.83,130.79,3.46]
[1763998198358,8.11014584,130.81,130.79,3.46]
[1763998199257,8.11014584,130.81,130.8,9.78882769]
[1763998200280,8.11014584,130.82,130.8,9.78882769]
[1763998200483,16.978864,130.85,130.8,9.78882769]
[1763998200686,8.11014584,130.86,130.82,9.78882769]
[1763998200887,8.11014584,130.87,130.83,3.46]
[1763998201098,8.11014584,130.84,130.8,3.46]
[1763998201267,8.11014584,130.81,130.73,11.57014584]
[1763998201460,8.11014584,130.78,130.74,0.69]
[1763998201682,8.11014584,130.76,130.73,3.46]
[1763998202691,24.41900984,130.8,130.73,3.46]
[1763998202692,8.11014584,130.77,130.73,4.15]
[1763998202990,0.67,130.78,130.74,9.78882769]
[1763998203164,8.11014584,130.77,130.74,10.47882769]
[1763998203361,0.67,130.83,130.77,9.78882769]
[1763998203569,8.11014584,130.8,130.77,13.24882769]
[1763998203795,8.11014584,130.79,130.77,13.24882769]
[1763998204192,8.78014584,130.78,130.74,3.46]
[1763998204363,8.11014584,130.76,130.74,3.46]
[1763998205384,0.67,130.77,130.74,13.24882769]
[1763998205590,8.11014584,130.75,130.74,13.24882769]
[1763998206296,8.11014584,130.75,130.72,0.1]
[1763998206465,8.11014584,130.74,130.72,0.1]
[1763998207789,8.78014584,130.73,130.72,0.1]
[1763998208478,25.08900984,130.73,130.72,0.1]
[1763998208680,16.308864,130.7,130.65,0.1]
[1763998208882,24.41900984,130.67,130.65,0.1]
[1763998209085,8.11014584,130.66,130.65,0.1]
[1763998209367,16.308864,130.63,130.59,3.46]
[1763998209570,8.11014584,130.6,130.56,3.46]
[1763998209770,16.308864,130.63,130.56,4.15]
[1763998209994,8.11014584,130.61,130.57,0.69]
[1763998210271,8.11014584,130.58,130.56,3.46]
[1763998210491,8.11014584,130.57,130.56,3.46]
[1763998210674,0.67,130.64,130.57,0.69]
[1763998210881,0.67,130.64,130.58,9.78882769]
[1763998211080,0.67,130.68,130.58,9.78882769]
[1763998211397,1.99999999,130.74,130.62,9.78882769]
[1763998211398,0.67,130.7,130.62,9.78882769]
[1763998211572,16.978864,130.69,130.62,10.47882769]
[1763998211773,0.67,130.69,130.62,9.78882769]
[1763998211973,0.67,130.69,130.64,9.78882769]
[1763998212178,8.11014584,130.69,130.64,9.78882769]
[1763998212378,8.11014584,130.69,130.65,0.69]
[1763998212812,8.11014584,130.7,130.66,9.78882769]
[1763998213014,8.11014584,130.72,130.68,9.78882769]
[1763998213306,8.11014584,130.7,130.66,10.47882769]
[1763998213491,0.67,130.72,130.65,13.24882769]